fUST/lending_fUST_20250731
["ID","MTS","AMOUNT","RATE_DAILY","PERIOD"]
[376201170,1753891843729,-288.11590298,0.00020871,2]
[376201172,1753891843742,-171.88409702,0.00020871,2]
[376201174,1753891843754,-460.0,0.00020871,2]
[376201176,1753891843764,-460.0,0.00020871,2]
[376201178,1753891843774,-392.37261207,0.000209,4]
[376201180,1753891843784,-195.382984,0.00020963,2]
[376201182,1753891843793,-160.0,0.00021029,2]
[376201184,1753891843803,-154.79890645,0.00021123,2]
[376201186,1753891843812,-833.26,0.0002113,10]
[376201188,1753891843821,-460.0,0.00021138,2]
[376201190,1753891843830,-460.0,0.00021138,2]
[376201191,1753891843839,-460.0,0.00021138,2]
[376201192,1753891843848,-460.0,0.00021139,2]
[376201193,1753891843858,-929.05,0.00021139,2]
[376201194,1753891843868,-460.0,0.00021139,2]
[376201195,1753891843877,-460.0,0.00021139,2]
[376201196,1753891843886,-754.17,0.00021139,2]
[376201197,1753891843896,-460.0,0.00021139,2]
[376201198,1753891843905,-460.0,0.00021139,2]
[376201199,1753891843914,-460.0,0.00021139,2]
[376201200,1753891843925,-1767.73,0.00021139,2]
[376201201,1753891843935,-460.0,0.00021139,2]
[376201202,1753891843944,-460.0,0.00021139,2]
[376201203,1753891843954,-472.31,0.00021139,2]
[376201204,1753891843963,-460.0,0.0002114,2]
[376201205,1753891843972,-460.0,0.0002114,2]
[376201206,1753891843982,-460.0,0.0002114,2]
[376201207,1753891843991,-56.9643067,0.0002114,2]
[376201208,1753891844004,-403.0356933,0.0002114,2]
[376201209,1753891844013,-460.0,0.0002114,2]
[376201210,1753891844022,-460.0,0.0002114,2]
[376201211,1753891844031,-115.40210349,0.0002114,2]
[376201212,1753891844043,-344.59789651,0.0002114,2]
[376201213,1753891844053,-460.0,0.0002114,2]
[376201215,1753891844062,-169.98669999,0.0002114,2]
[376201217,1753891844074,-290.01330001,0.0002114,2]
[376201219,1753891844084,-74.79669999,0.0002114,2]
[376201454,1753891846301,-385.20330001,0.0002114,2]
[376201456,1753891846310,-460.0,0.0002114,2]
[376201458,1753891846319,-460.0,0.0002114,2]
[376201460,1753891846328,-460.0,0.0002114,2]
[376201462,1753891846338,-460.0,0.0002114,2]
[376201464,1753891846350,-460.0,0.0002114,2]
[376201466,1753891846359,-460.0,0.0002114,2]
[376201468,1753891846368,-460.0,0.0002114,2]
[376201470,1753891846377,-460.0,0.0002114,2]
[376201472,1753891846387,-460.0,0.0002114,2]
[376201474,1753891846396,-460.0,0.0002114,2]
[376201476,1753891846405,-460.0,0.0002114,2]
[376201478,1753891846414,-460.0,0.0002114,2]
[376201480,1753891846424,-460.0,0.0002114,2]
[376201481,1753891846436,-460.0,0.0002114,2]
[376201482,1753891846444,-460.0,0.0002114,2]
[376201483,1753891846453,-313.69669998,0.00021141,2]
[376201484,1753891846473,-146.30330002,0.00021141,2]
[376201485,1753891846483,-460.0,0.00021141,2]
[376201486,1753891846492,-460.0,0.00021141,2]
[376201488,1753891846501,-460.0,0.00021142,2]
[376201490,1753891846511,-460.0,0.00021142,2]
[376201492,1753891846520,-460.0,0.00021142,2]
[376201495,1753891846529,-460.0,0.00021142,2]
[376201497,1753891846538,-460.0,0.00021142,2]
[376201499,1753891846547,-460.0,0.00021142,2]
[376201501,1753891846558,-460.0,0.00021142,2]
[376201503,1753891846568,-175.18047228,0.00021142,2]
[376201505,1753891846577,-280.58905616,0.00021142,2]
[376201507,1753891846587,-460.0,0.00021143,2]
[376201509,1753891846596,-460.0,0.00021143,2]
[376201511,1753891846605,-1883.79,0.00021143,2]
[376201513,1753891846615,-460.0,0.00021143,2]
[376201515,1753891846624,-460.0,0.00021144,2]
[376201517,1753891846633,-282.12832573,0.00021144,2]
[376201519,1753891846642,-505.78,0.00021144,2]
[376201521,1753891846652,-505.78,0.00021144,2]
[376201523,1753891846661,-460.0,0.00021145,2]
[376201525,1753891846670,-460.0,0.00021145,2]
[376201527,1753891846680,-167.61711647,0.00021254,2]
[376201529,1753891846690,-448.95261029,0.00021318,2]
[376201531,1753891846699,-510.35,0.00021412,2]
[376201533,1753891846708,-460.0,0.00021412,2]
[376201535,1753891846716,-460.0,0.00021412,2]
[376201537,1753891846725,-562.51,0.00021413,2]
[376201539,1753891846734,-929.05,0.00021413,2]
[376201541,1753891846743,-460.0,0.00021413,2]
[376201543,1753891846752,-460.0,0.00021413,2]
[376201545,1753891846761,-754.17,0.00021413,2]
[376201547,1753891846770,-460.0,0.00021413,2]
[376201549,1753891846779,-460.0,0.00021413,2]
[376201551,1753891846788,-460.0,0.00021413,2]
[376201553,1753891846798,-1767.73,0.00021413,2]
[376201555,1753891846807,-460.0,0.00021413,2]
[376201557,1753891846816,-460.0,0.00021413,2]
[376201559,1753891846825,-472.31,0.00021413,2]
[376201561,1753891846835,-460.0,0.00021414,2]
[376201563,1753891846844,-460.0,0.00021414,2]
[376201565,1753891846853,-460.0,0.00021414,2]
[376201567,1753891846863,-460.0,0.00021414,2]
[376201569,1753891846872,-460.0,0.00021414,2]
[376201571,1753891846881,-572.20647749,0.00021414,2]
[376201573,1753891846891,-460.0,0.00021414,2]
[376201575,1753891846900,-339.43946372,0.00021414,2]
[376201577,1753891846910,-460.0,0.00021414,2]
[376201579,1753891846920,-460.0,0.00021414,2]
[376201581,1753891846932,-460.0,0.00021414,2]
[376201583,1753891846941,-460.0,0.00021414,2]
[376201585,1753891846950,-460.0,0.00021414,2]
[376201587,1753891846960,-460.0,0.00021414,2]
[376201589,1753891846970,-460.0,0.00021414,2]
[376201591,1753891846979,-460.0,0.00021414,2]
[376201593,1753891846990,-460.0,0.00021414,2]
[376201595,1753891847001,-460.0,0.00021414,2]
[376201597,1753891847010,-467.65858537,0.00021414,2]
[376201599,1753891847020,-508.57314319,0.00021414,2]
[376201601,1753891847029,-460.0,0.00021414,2]
[376201603,1753891847038,-460.0,0.00021414,2]
[376201605,1753891847048,-460.0,0.00021414,2]
[376201607,1753891847057,-460.0,0.00021414,2]
[376201609,1753891847066,-460.0,0.00021414,2]
[376201611,1753891847076,-460.0,0.00021415,2]
[376201613,1753891847085,-460.0,0.00021415,2]
[376201615,1753891847094,-460.0,0.00021415,2]
[376201617,1753891847103,-504.1967612,0.00021416,2]
[376201619,1753891847112,-460.0,0.00021416,2]
[376201621,1753891847121,-460.0,0.00021416,2]
[376201623,1753891847130,-460.0,0.00021416,2]
[376201625,1753891847139,-460.0,0.00021416,2]
[376201627,1753891847149,-445.39194126,0.00021416,2]
[376201629,1753891847158,-460.0,0.00021416,2]
[376201631,1753891847168,-460.0,0.00021417,2]
[376201633,1753891847177,-1883.79,0.00021417,2]
[376201635,1753891847186,-460.0,0.00021417,2]
[376201637,1753891847196,-460.0,0.00021418,2]
[376201639,1753891847206,-505.78,0.00021418,2]
[376201641,1753891847216,-505.78,0.00021418,2]
[376201643,1753891847225,-460.0,0.00021419,2]
[376201645,1753891847237,-460.0,0.00021419,2]
[376201647,1753891847246,-188.0,0.00021537,2]
[376201649,1753891847256,-420.0,0.00021537,2]
[376201651,1753891847266,-2799.71,0.00021561,3]
[376201654,1753891847278,-260.0,0.00021577,2]
[376201656,1753891847287,-4000.0,0.00021622,3]
[376201657,1753891847297,-460.0,0.00021686,2]
[376201659,1753891847306,-929.05,0.00021687,2]
[376201662,1753891847315,-460.0,0.00021687,2]
[376201664,1753891847325,-754.17,0.00021687,2]
[376201666,1753891847334,-206.51564789,0.00021687,2]
[376201668,1753891847343,-460.0,0.00021687,2]
[376201670,1753891847356,-1767.73,0.00021687,2]
[376201672,1753891847365,-480.8,0.00021687,2]
[376201674,1753891847374,-472.31,0.00021687,2]
[376201676,1753891847383,-460.0,0.00021688,2]
[376201678,1753891847392,-460.0,0.00021688,2]
[376201680,1753891847402,-460.0,0.00021688,2]
[376201681,1753891847412,-347.95595481,0.00021688,2]
[376201684,1753891847422,-460.0,0.00021688,2]
[376201686,1753891847433,-470.98,0.00021688,2]
[376201688,1753891847442,-460.0,0.00021688,2]
[376201690,1753891847451,-460.0,0.00021688,2]
[376201692,1753891847461,-460.0,0.00021688,2]
[376201694,1753891847470,-460.0,0.00021688,2]
[376201696,1753891847479,-437.1,0.00021688,2]
[376201700,1753891847510,-460.0,0.00021688,2]
[376201702,1753891847520,-460.0,0.00021688,2]
[376201704,1753891847529,-624.80510969,0.00021688,2]
[376201706,1753891847538,-500.0,0.00021688,2]
[376201708,1753891847548,-452.66185362,0.00021688,2]
[376201710,1753891847559,-500.0,0.00021688,2]
[376201712,1753891847568,-500.0,0.00021688,2]
[376201714,1753891847578,-500.0,0.00021688,2]
[376201716,1753891847587,-560.52310431,0.00021688,2]
[376201718,1753891847596,-179.44829523,0.00021688,2]
[376201720,1753891847605,-500.0,0.00021688,2]
[376201722,1753891847615,-500.0,0.00021688,2]
[376201724,1753891847624,-254.37142495,0.00021688,2]
[376201726,1753891847633,-500.0,0.00021688,2]
[376201728,1753891847642,-500.0,0.00021688,2]
[376201730,1753891847651,-500.0,0.00021688,2]
[376201732,1753891847660,-500.0,0.00021688,2]
[376201734,1753891847669,-500.0,0.00021688,2]
[376201736,1753891847679,-399.28369281,0.00021688,2]
[376201738,1753891847689,-460.0,0.00021689,2]
[376201740,1753891847698,-460.0,0.0002169,2]
[376201742,1753891847707,-205.85,0.0002169,2]
[376201744,1753891847716,-460.0,0.0002169,2]
[376201746,1753891847726,-1883.79,0.00021691,2]
[376201748,1753891847735,-460.0,0.00021691,2]
[376201750,1753891847743,-460.0,0.00021692,2]
[376201752,1753891847752,-505.78,0.00021692,2]
[376201754,1753891847764,-505.78,0.00021692,2]
[376201756,1753891847773,-460.0,0.00021693,2]
[376201758,1753891847782,-460.0,0.00021693,2]
[376201760,1753891847791,-860.129806,0.00021726,2]
[376201762,1753891847802,-312.16666667,0.00021729,2]
[376201764,1753891847811,-526.76118213,0.00021729,2]
[376201766,1753891847820,-216.14611358,0.00021729,2]
[376201768,1753891847830,-103.6844118,0.00021729,2]
[376201770,1753891847843,-56.3155882,0.00021729,2]
[376201773,1753891847854,-460.0,0.00021738,2]
[376201775,1753891847863,-460.0,0.00021738,2]
[376201776,1753891847872,-460.0,0.00021738,2]
[376201779,1753891847881,-604.94,0.00021738,2]
[376201781,1753891847890,-191.71425782,0.00021738,2]
[376201783,1753891847900,-460.0,0.00021738,2]
[376201785,1753891847909,-460.0,0.00021738,2]
[376201787,1753891847918,-510.0,0.0002175,2]
[376201788,1753891847927,-154.79890645,0.00021757,2]
[376201791,1753891847937,-20980.81439579,0.00021769,2]
[376201793,1753891847948,-1282.5120933,0.00021769,2]
[376201795,1753891847959,-2598.21835481,0.00021769,2]
[376201797,1753891847970,-2130.1,0.00021769,2]
[376201799,1753891847981,-12907.49962104,0.00021769,2]
[376201801,1753891847993,-2396.79142808,0.00021769,2]
[376201804,1753891848002,-500.0,0.00021919,2]
[376201806,1753891848011,-500.0,0.00021921,2]
[376201807,1753891848020,-460.0,0.0002196,2]
[376201809,1753891848029,-929.05,0.00021961,2]
[376201812,1753891848039,-754.17,0.00021961,2]
[376201814,1753891848048,-460.0,0.00021961,2]
[376201816,1753891848058,-1767.73,0.00021961,2]
[376201818,1753891848067,-472.31,0.00021961,2]
[376201819,1753891848076,-401.5,0.00021962,2]
[376201821,1753891848085,-460.0,0.00021962,2]
[376201824,1753891848094,-561.78,0.00021962,2]
[376201825,1753891848103,-424.1,0.00021962,2]
[376201827,1753891848113,-437.55,0.00021962,2]
[376201829,1753891848123,-364.9,0.00021962,2]
[376201832,1753891848132,-150.8,0.00021962,2]
[376201834,1753891848142,-526.67,0.00021963,2]
[376201836,1753891848151,-201.2,0.00021964,2]
[376201838,1753891848160,-460.0,0.00021964,2]
[376201840,1753891848169,-909.33636376,0.00021965,2]
[376201842,1753891848180,-974.45363624,0.00021965,2]
[376201844,1753891848189,-460.0,0.00021965,2]
[376201846,1753891848199,-505.78,0.00021966,2]
[376201848,1753891848208,-505.78,0.00021966,2]
[376201850,1753891848218,-460.0,0.00021967,2]
[376201852,1753891848227,-460.0,0.00021967,2]
[376201854,1753891848236,-306.0,0.00021969,2]
[376201856,1753891848245,-153.0,0.00021969,2]
[376201858,1753891848255,-153.0,0.00021969,2]
[376201860,1753891848264,-153.0,0.00021969,2]
[376201862,1753891848274,-153.0,0.00021969,2]
[376201864,1753891848284,-153.0,0.00021969,2]
[376201866,1753891848293,-131.65161469,0.00022,2]
[376201869,1753891848305,-211.87838531,0.00022,2]
[376201871,1753891848314,-604.94,0.00022012,2]
[376201873,1753891848323,-460.0,0.00022012,2]
[376201875,1753891848332,-460.0,0.00022012,2]
[376201877,1753891848341,-360.0,0.00022124,2]
[376201879,1753891848354,-200.0,0.00022145,15]
[376201880,1753891848363,-200.0,0.00022145,15]
[376201883,1753891848373,-200.0,0.00022145,15]
[376201885,1753891848382,-200.0,0.00022145,15]
[376201887,1753891848391,-200.0,0.00022145,15]
[376201889,1753891848401,-200.0,0.00022145,15]
[376201891,1753891848411,-200.0,0.00022145,15]
[376201893,1753891848421,-200.0,0.00022145,15]
[376201895,1753891848431,-200.0,0.00022145,15]
[376201897,1753891848441,-200.0,0.00022145,15]
[376201899,1753891848450,-200.0,0.00022145,15]
[376201901,1753891848460,-200.0,0.00022145,15]
[376201903,1753891848470,-129.42745672,0.00022145,15]
[376201905,1753891848483,-70.57254328,0.00022145,15]
[376201907,1753891848493,-200.0,0.00022145,15]
[376201909,1753891848503,-460.0,0.00022234,2]
[376201911,1753891848513,-929.05,0.00022235,2]
[376201913,1753891848523,-754.17,0.00022235,2]
[376201915,1753891848532,-460.0,0.00022235,2]
[376201917,1753891848543,-1767.73,0.00022235,2]
[376201919,1753891848552,-185.36843457,0.00022235,2]
[376201921,1753891848563,-286.94156543,0.00022235,2]
[376201923,1753891848573,-460.0,0.00022236,2]
[376201925,1753891848582,-432.5,0.00022238,2]
[376201927,1753891848592,-1883.79,0.00022239,2]
[376201929,1753891848601,-460.0,0.00022239,2]
[376201931,1753891848611,-505.78,0.0002224,2]
[376201933,1753891848620,-505.78,0.0002224,2]
[376201935,1753891848629,-460.0,0.00022241,2]
[376201937,1753891848639,-460.0,0.00022241,2]
[376201940,1753891848648,-151.0,0.00022243,2]
[376201941,1753891848658,-250.0,0.00022245,2]
[376201944,1753891848667,-604.94,0.00022286,2]
[376201946,1753891848678,-460.0,0.00022286,2]
[376201948,1753891848687,-460.0,0.00022286,2]
[376201950,1753891848697,-167.61711647,0.0002229,2]
[376201952,1753891848706,-1000.0,0.00022299,2]
[376201954,1753891848717,-460.0,0.00022299,2]
[376201956,1753891848726,-460.0,0.00022299,2]
[376201958,1753891848735,-460.0,0.00022299,2]
[376201960,1753891848745,-460.0,0.00022299,2]
[376201962,1753891848755,-481.65853939,0.00022299,2]
[376201964,1753891848765,-171.62878727,0.00022299,2]
[376201966,1753891848774,-460.0,0.00022299,2]
[376201968,1753891848784,-460.0,0.00022299,2]
[376201970,1753891848794,-460.0,0.00022299,2]
[376201972,1753891848803,-460.0,0.00022299,2]
[376201974,1753891848813,-460.0,0.00022299,2]
[376201976,1753891848822,-460.0,0.00022299,2]
[376201978,1753891848831,-460.0,0.00022299,2]
[376201980,1753891848841,-460.0,0.00022299,2]
[376201982,1753891848850,-460.0,0.00022299,2]
[376201984,1753891848860,-460.0,0.00022299,2]
[376201986,1753891848869,-460.0,0.00022299,2]
[376201988,1753891848879,-460.0,0.00022299,2]
[376201990,1753891848888,-151.0,0.000223,2]
[376201992,1753891848898,-151.0,0.000223,2]
[376201994,1753891848907,-151.0,0.000223,2]
[376201996,1753891848916,-151.0,0.000223,2]
[376201998,1753891848926,-151.0,0.000223,2]
[376202000,1753891848936,-151.0,0.000223,2]
[376202002,1753891848945,-151.0,0.000223,2]
[376202004,1753891848955,-151.0,0.000223,2]
[376202006,1753891848964,-151.0,0.000223,2]
[376202009,1753891848974,-151.0,0.000223,2]
[376202010,1753891848983,-151.0,0.000223,2]
[376202013,1753891848993,-151.0,0.000223,2]
[376202015,1753891849003,-151.0,0.000223,2]
[376202017,1753891849013,-151.0,0.000223,2]
[376202019,1753891849022,-151.0,0.000223,2]
[376202021,1753891849032,-151.0,0.000223,2]
[376202023,1753891849042,-151.0,0.000223,2]
[376202025,1753891849051,-151.0,0.000223,2]
[376202027,1753891849061,-151.0,0.000223,2]
[376202029,1753891849071,-151.0,0.000223,2]
[376202031,1753891849082,-300.0,0.000223,2]
[376202033,1753891849094,-300.0,0.000223,2]
[376202035,1753891849104,-300.0,0.000223,2]
[376202037,1753891849113,-300.0,0.000223,2]
[376202039,1753891849123,-300.0,0.000223,2]
[376202041,1753891849132,-300.0,0.000223,2]
[376202043,1753891849142,-300.0,0.000223,2]
[376202045,1753891849151,-300.0,0.000223,2]
[376202047,1753891849160,-300.0,0.000223,2]
[376202049,1753891849170,-300.0,0.000223,2]
[376202051,1753891849180,-300.0,0.000223,2]
[376202053,1753891849191,-300.0,0.000223,2]
[376202055,1753891849200,-300.0,0.000223,2]
[376202057,1753891849209,-300.0,0.000223,2]
[376202059,1753891849218,-300.0,0.000223,2]
[376202061,1753891849228,-300.0,0.000223,2]
[376202063,1753891849238,-300.0,0.000223,2]
[376202065,1753891849247,-300.0,0.000223,2]
[376202067,1753891849256,-300.0,0.000223,2]
[376202069,1753891849266,-300.0,0.000223,2]
[376202071,1753891849276,-2190.66971269,0.000223,7]
[376202073,1753891849285,-2451.42212137,0.000223,7]
[376202075,1753891849298,-875.7787049,0.000223,7]
[376203785,1753892006619,170.179228,0.00013699,2]
[376203789,1753892040624,15080.87,0.00023,90]
[376203969,1753893034146,-195.4301,0.0001927,2]
[376203994,1753893034660,-181.539139,0.00019317,2]
[376203995,1753893034670,-1800.22765949,0.000197,2]
[376203996,1753893034680,-300.0,0.00019999,2]
[376203997,1753893034697,-460.0,0.00019999,2]
[376203998,1753893034707,-462.93405833,0.00019999,2]
[376203999,1753893034717,-173.842,0.0002,2]
[376204000,1753893034726,-723.423589,0.0002,2]
[376204001,1753893034735,-7800.0,0.0002,7]
[376204002,1753893034746,-8859.74923358,0.0002,2]
[376204003,1753893034756,-864.90845103,0.00020096,2]
[376204004,1753893034765,-340.70077517,0.00020214,2]
[376204005,1753893034775,-328.23962609,0.00020216,2]
[376204006,1753893034785,-465.84,0.00020306,3]
[376204007,1753893034794,-352.0,0.00020313,2]
[376204008,1753893034803,-1200.0,0.00020313,2]
[376204009,1753893034812,-477.75899776,0.00020314,2]
[376204010,1753893034821,-460.0,0.00020314,2]
[376204011,1753893034831,-460.0,0.00020314,2]
[376204012,1753893034840,-460.0,0.00020314,2]
[376204013,1753893034849,-460.0,0.00020314,2]
[376204014,1753893034859,-460.0,0.00020314,2]
[376204015,1753893034869,-460.0,0.00020314,2]
[376204016,1753893034878,-460.0,0.00020314,2]
[376204017,1753893034887,-460.0,0.00020314,2]
[376204018,1753893034897,-460.0,0.00020314,2]
[376204019,1753893034906,-460.0,0.00020314,2]
[376204020,1753893034915,-460.0,0.00020314,2]
[376204021,1753893034924,-460.0,0.00020314,2]
[376204022,1753893034934,-460.0,0.00020314,2]
[376204023,1753893034943,-460.0,0.00020314,2]
[376204024,1753893034953,-460.0,0.00020314,2]
[376204025,1753893034962,-171.55857309,0.00020314,2]
[376204026,1753893034971,-613.65,0.00020314,2]
[376204027,1753893034980,-461.16635307,0.00020314,2]
[376204028,1753893034990,-460.0,0.00020314,2]
[376204029,1753893034999,-471.93722276,0.00020314,2]
[376204030,1753893035008,-460.0,0.00020314,2]
[376204031,1753893035018,-2318.71,0.00020314,2]
[376204032,1753893035027,-460.0,0.00020314,2]
[376204033,1753893035036,-155.0,0.00020315,2]
[376204034,1753893035045,-460.0,0.00020315,2]
[376204035,1753893035054,-460.0,0.00020315,2]
[376204036,1753893035064,-460.0,0.00020315,2]
[376204037,1753893035073,-460.0,0.00020315,2]
[376204038,1753893035082,-509.09139118,0.00020315,2]
[376204039,1753893035092,-156.77394553,0.00020315,2]
[376204040,1753893035101,-460.0,0.00020315,2]
[376204041,1753893035111,-460.0,0.00020315,2]
[376204042,1753893035121,-460.0,0.00020315,2]
[376204043,1753893035130,-460.0,0.00020315,2]
[376204044,1753893035140,-460.0,0.00020315,2]
[376204045,1753893035149,-460.0,0.00020315,2]
[376204046,1753893035158,-460.0,0.00020315,2]
[376204047,1753893035167,-460.0,0.00020315,2]
[376204048,1753893035177,-460.0,0.00020315,2]
[376204049,1753893035186,-460.0,0.00020315,2]
[376204050,1753893035195,-460.0,0.00020315,2]
[376204051,1753893035205,-460.0,0.00020315,2]
[376204052,1753893035214,-460.0,0.00020315,2]
[376204053,1753893035223,-466.42093496,0.00020315,2]
[376204054,1753893035232,-460.0,0.00020315,2]
[376204055,1753893035241,-460.0,0.00020315,2]
[376204056,1753893035250,-460.0,0.00020315,2]
[376204057,1753893035259,-399.24365653,0.00020315,2]
[376204058,1753893035269,-460.0,0.00020315,2]
[376204059,1753893035279,-438.38134744,0.00020315,2]
[376204060,1753893035288,-460.0,0.00020315,2]
[376204061,1753893035297,-460.0,0.00020315,2]
[376204062,1753893035307,-460.0,0.00020315,2]
[376204063,1753893035316,-500.0,0.00020315,2]
[376204064,1753893035325,-524.45322043,0.00020315,2]
[376204065,1753893035334,-460.0,0.00020315,2]
[376204066,1753893035343,-460.0,0.00020315,2]
[376204067,1753893035352,-460.0,0.00020315,2]
[376204068,1753893035363,-460.0,0.00020315,2]
[376204069,1753893035373,-460.0,0.00020315,2]
[376204070,1753893035382,-460.0,0.00020315,2]
[376204071,1753893035391,-460.0,0.00020315,2]
[376204072,1753893035401,-460.0,0.00020315,2]
[376204073,1753893035410,-460.0,0.00020315,2]
[376204074,1753893035419,-460.0,0.00020315,2]
[376204075,1753893035428,-337.73874921,0.00020315,2]
[376204076,1753893035438,-823.55,0.00020315,2]
[376204077,1753893035447,-460.0,0.00020315,2]
[376204078,1753893035456,-460.0,0.00020315,2]
[376204079,1753893035466,-460.0,0.00020315,2]
[376204080,1753893035475,-460.0,0.00020315,2]
[376204081,1753893035485,-1352.64,0.00020315,2]
[376204082,1753893035494,-460.0,0.00020315,2]
[376204083,1753893035504,-460.0,0.00020315,2]
[376204084,1753893035513,-460.0,0.00020315,2]
[376204085,1753893035523,-460.0,0.00020315,2]
[376204086,1753893035532,-460.0,0.00020315,2]
[376204087,1753893035541,-460.0,0.00020315,2]
[376204088,1753893035551,-460.0,0.00020315,2]
[376204089,1753893035560,-460.0,0.00020315,2]
[376204090,1753893035569,-460.0,0.00020315,2]
[376204091,1753893035579,-460.0,0.00020315,2]
[376204092,1753893035588,-460.0,0.00020315,2]
[376204093,1753893035597,-460.0,0.00020315,2]
[376204094,1753893035607,-1061.64,0.00020315,2]
[376204095,1753893035617,-460.0,0.00020315,2]
[376204096,1753893035626,-460.0,0.00020315,2]
[376204097,1753893035635,-460.0,0.00020315,2]
[376204098,1753893035644,-460.0,0.00020315,2]
[376204099,1753893035654,-460.0,0.00020315,2]
[376204100,1753893035663,-460.0,0.00020315,2]
[376204101,1753893035672,-460.0,0.00020315,2]
[376204102,1753893035685,-460.0,0.00020315,2]
[376204103,1753893035694,-460.0,0.00020315,2]
[376204104,1753893035703,-460.0,0.00020315,2]
[376204105,1753893035712,-460.0,0.00020315,2]
[376204106,1753893035722,-542.97,0.00020315,2]
[376204107,1753893035732,-460.0,0.00020315,2]
[376204108,1753893035741,-460.0,0.00020315,2]
[376204109,1753893035750,-460.0,0.00020315,2]
[376204110,1753893035761,-460.0,0.00020315,2]
[376204111,1753893035770,-460.0,0.00020315,2]
[376204112,1753893035780,-460.0,0.00020315,2]
[376204113,1753893035789,-460.0,0.00020315,2]
[376204114,1753893035799,-460.0,0.00020315,2]
[376204115,1753893035808,-151.0,0.00020315,2]
[376204116,1753893035818,-460.0,0.00020315,2]
[376204117,1753893035828,-151.0,0.00020315,2]
[376204118,1753893035837,-151.0,0.00020315,2]
[376204119,1753893035846,-151.0,0.00020315,2]
[376204120,1753893035858,-460.0,0.00020315,2]
[376204121,1753893035867,-521.0,0.00020315,2]
[376204122,1753893035877,-460.0,0.00020315,2]
[376204123,1753893035996,-151.0,0.00020315,2]
[376204124,1753893036006,-460.0,0.00020315,2]
[376204125,1753893036015,-271.38457742,0.00020315,2]
[376204126,1753893036024,-463.38483838,0.00020315,2]
[376204127,1753893036033,-151.0,0.00020315,2]
[376204128,1753893036042,-460.0,0.00020315,2]
[376204129,1753893036051,-460.0,0.00020315,2]
[376204130,1753893036060,-460.0,0.00020315,2]
[376204131,1753893036069,-460.0,0.00020315,2]
[376204132,1753893036079,-460.0,0.00020315,2]
[376204133,1753893036089,-460.0,0.00020315,2]
[376204134,1753893036098,-460.0,0.00020315,2]
[376204135,1753893036110,-475.02596355,0.00020315,2]
[376204136,1753893036120,-460.0,0.00020315,2]
[376204137,1753893036129,-460.0,0.00020315,2]
[376204138,1753893036138,-151.0,0.00020315,2]
[376204139,1753893036147,-203.96257726,0.00020315,2]
[376204140,1753893036156,-460.0,0.00020316,2]
[376204141,1753893036165,-460.0,0.00020316,2]
[376204142,1753893036174,-460.0,0.00020316,2]
[376204143,1753893036184,-460.0,0.00020316,2]